bitfinex/quotes_BTCUSD_20260215
["timestamp","ask_amount","ask_price","bid_price","bid_amount"]
[1771176895231,0.04814811,69047.0,69032.0,0.0002]
[1771176895438,0.30236,69048.0,69032.0,0.0002]
[1771176895820,0.04814811,69047.0,69032.0,0.0002]
[1771176896021,0.30236,69048.0,69032.0,0.0002]
[1771176896465,0.04814811,69047.0,69032.0,0.0002]
[1771176896693,0.30236,69048.0,69032.0,0.0002]
[1771176897486,0.02368938,69047.0,69032.0,0.0002]
[1771176897715,0.30236,69048.0,69032.0,0.0002]
[1771176898148,1.2603149,69040.0,69025.0,0.0002]
[1771176898324,0.63015745,69035.0,69022.0,0.0002]
[1771176898665,0.63015745,69040.0,69022.0,0.0002]
[1771176898666,0.30288,69036.0,69022.0,0.0002]
[1771176898995,0.04814811,69035.0,69022.0,0.0002]
[1771176899444,0.30288,69036.0,69022.0,0.0002]
[1771176899649,0.02368938,69034.0,69022.0,0.0002]
[1771176899819,0.02445873,69033.0,69022.0,0.00013343]
[1771176900596,0.02368938,69041.0,69022.0,0.00013343]
[1771176900804,0.02445873,69047.0,69031.0,0.02254879]
[1771176901003,0.24133873,69047.0,69032.0,0.02254879]
[1771176902171,0.02445873,69047.0,69032.0,0.02254879]
[1771176905227,0.02445873,69047.0,69032.0,0.02274879]
[1771176910383,0.32821873,69047.0,69032.0,0.02274879]
[1771176912959,0.304,69046.0,69032.0,0.02274879]
[1771176914140,0.02445873,69047.0,69032.0,0.02274879]
[1771176914288,0.30412,69046.0,69032.0,0.02274879]
[1771176914911,0.3042,69046.0,69034.0,0.02404696]
[1771176915110,0.0004,69049.0,69035.0,0.02404696]
[1771176915318,0.30424,69048.0,69035.0,0.02404696]
[1771176915517,0.30424,69048.0,69036.0,0.02404696]
[1771176916081,0.0004,69049.0,69036.0,0.02404696]
[1771176916234,0.00071084,69053.0,69040.0,0.02404696]
[1771176916398,0.00071084,69053.0,69043.0,0.02375348]
[1771176916604,0.00071084,69053.0,69046.0,0.02404696]
[1771176918062,0.00071084,69053.0,69046.0,0.04780044]
[1771176918481,0.00044994,69053.0,69046.0,0.02404696]
[1771176919042,0.00044994,69053.0,69042.0,0.02404696]
[1771176924059,0.00044994,69053.0,69040.0,0.63009575]
[1771176924273,0.0003393,69056.0,69041.0,0.02404696]
[1771176924487,0.0003393,69056.0,69042.0,0.02404696]
[1771176933627,0.02414802,69050.0,69035.0,0.34708]
[1771176933838,0.02414802,69050.0,69031.0,0.09276]
[1771176933839,0.63022498,69050.0,69031.0,0.09276]
[1771176934103,0.04659818,69049.0,69031.0,0.09276]
[1771176934327,0.63009575,69042.0,69026.0,0.37112696]
[1771176934546,0.02414802,69036.0,69021.0,0.0002]
[1771176934766,0.04659818,69034.0,69021.0,0.0002]
[1771176934990,0.02414802,69033.0,69021.0,0.0002]
[1771176935203,0.02245016,69030.0,69021.0,0.0002]
[1771176935413,0.02414802,69029.0,69021.0,0.0002]
[1771176936483,0.30536,69031.0,69021.0,0.00024998]
[1771176936688,0.30536,69031.0,69025.0,0.0002]
[1771176937838,0.30564,69032.0,69025.0,0.0002]
[1771176938470,0.32978802,69032.0,69025.0,0.0002]
[1771176940888,0.30616,69031.0,69025.0,0.0002]
[1771176944592,0.02280267,69030.0,69021.0,0.00024998]
[1771176945738,0.30616,69031.0,69021.0,0.00024998]
[1771176947031,0.30684,69032.0,69021.0,0.00024998]
[1771176952235,0.02280267,69035.0,69021.0,0.00024998]
[1771176952474,0.30684,69034.0,69021.0,0.00024998]
[1771176952693,0.32964267,69034.0,69021.0,0.00024998]
[1771176953651,0.30684,69034.0,69021.0,0.00024998]
[1771176953862,0.02280267,69033.0,69021.0,0.00024998]
[1771176957730,0.30736,69034.0,69021.0,0.00024998]
[1771176957953,0.02280267,69047.0,69027.0,0.02429805]
[1771176958158,0.30696,69046.0,69032.0,0.02205376]
[1771176958366,0.30696,69046.0,69033.0,0.02429805]
[1771176958945,0.30696,69046.0,69030.0,0.63009575]
[1771176959194,0.63009575,69040.0,69021.0,0.00024998]
[1771176959430,0.65289842,69040.0,69023.0,0.02205376]
[1771176959643,0.65289842,69040.0,69025.0,0.02429805]
[1771176960070,0.02280267,69039.0,69025.0,0.02429805]
[1771176960940,0.02211493,69039.0,69021.0,0.02230374]
[1771176961149,0.02280267,69038.0,69021.0,0.02230374]
[1771176961374,0.02280267,69038.0,69021.0,0.04660179]
[1771176964361,0.02280267,69038.0,69022.0,0.02429805]
[1771176965712,0.02280267,69057.0,69029.0,0.02205376]
[1771176965917,0.02280267,69057.0,69028.0,0.63009575]
[1771176965919,0.1271841,69054.0,69040.0,0.63009575]
[1771176966268,0.1271841,69054.0,69041.0,0.02205376]
[1771176966471,0.1271841,69054.0,69042.0,0.02429805]
[1771176967596,0.00050609,69053.0,69042.0,0.02429805]
[1771176970225,0.00050609,69053.0,69042.0,0.04635181]
[1771176971194,0.00050609,69053.0,69043.0,0.02429805]
[1771176971395,0.0001841,69054.0,69046.0,0.02205376]
[1771176971582,0.0001841,69054.0,69040.0,0.63009575]
[1771176971583,0.00023401,69054.0,69048.0,0.02429805]
[1771176972054,0.0004,69053.0,69048.0,0.02429805]
[1771176973715,0.0004,69053.0,69048.0,0.04729309]
[1771176973859,0.0003393,69056.0,69040.0,0.63009575]
[1771176974065,0.0003393,69056.0,69043.0,0.02299504]
[1771176974278,0.0004,69060.0,69046.0,0.02376682]
[1771176974484,0.0004,69060.0,69048.0,0.02376682]
[1771176975042,0.0004,69060.0,69048.0,0.02299504]
[1771176975247,0.0004,69060.0,69050.0,0.02299504]
[1771176975460,0.0004,69060.0,69051.0,0.02376682]
[1771176976672,0.0004,69060.0,69051.0,0.02299504]
[1771176976996,0.0004,69060.0,69052.0,0.02376682]
[1771176977886,0.0004,69060.0,69053.0,0.02376682]
[1771176978087,0.0004,69060.0,69054.0,0.02299504]
[1771176978422,0.0004,69063.0,69057.0,0.02376682]
[1771176978633,0.0004,69063.0,69058.0,0.02299504]
[1771176978852,0.0004,69063.0,69058.0,0.02376682]
[1771176979072,0.0004,69060.0,69058.0,0.02376682]
[1771176979292,0.93725413,69070.0,69059.0,0.02299504]
[1771176979293,0.0004,69067.0,69059.0,0.02299504]
[1771176979554,0.0004,69067.0,69058.0,0.02299504]
[1771176979772,0.0004,69067.0,69060.0,0.02376682]
[1771176979983,0.0001783,69070.0,69061.0,0.02299504]
[1771176980203,0.0001783,69070.0,69062.0,0.02376682]
[1771176980440,0.0004,69074.0,69064.0,0.02376682]
[1771176980652,0.0001783,69080.0,69060.0,0.62987583]
[1771176980653,0.0001783,69080.0,69070.0,0.62987583]
[1771176980859,0.0001783,69080.0,69071.0,0.02376682]
[1771176981202,0.00060919,69080.0,69071.0,0.02376682]
[1771176982439,0.00060919,69080.0,69061.0,0.07239917]
[1771176982440,0.00060919,69080.0,69073.0,0.02376682]
[1771176982652,0.00060919,69080.0,69074.0,0.02376682]
[1771176982920,0.63005413,69090.0,69074.0,0.02376682]
[1771176982921,0.30668,69087.0,69074.0,0.02376682]
[1771176983135,0.30680921,69087.0,69076.0,0.02376682]
[1771176985013,0.30664823,69087.0,69076.0,0.02376682]
[1771176985659,0.30632617,69087.0,69076.0,0.02376682]
[1771176985873,0.00012921,69087.0,69070.0,0.65287087]
[1771176986070,0.00012921,69087.0,69071.0,0.02376682]
[1771176986290,0.00052921,69087.0,69071.0,0.02376682]
[1771176986500,0.00052921,69087.0,69062.0,0.02299504]
[1771176986501,0.62987583,69081.0,69062.0,0.02299504]
[1771176986706,0.62987583,69081.0,69040.0,0.62987583]
[1771176986707,0.33679583,69072.0,69057.0,0.02299504]
[1771176986931,0.02401016,69076.0,69059.0,0.02376682]
[1771176987410,0.65388599,69081.0,69060.0,0.62987583]
[1771176987629,0.02401016,69080.0,69061.0,0.02299504]
[1771176987846,0.02401016,69080.0,69062.0,0.02376682]
[1771176989214,0.02401016,69080.0,69063.0,0.02299504]
[1771176989417,0.02401016,69080.0,69063.0,0.04676186]
[1771176990016,0.65388599,69080.0,69064.0,0.02376682]
[1771176990322,0.02401016,69079.0,69064.0,0.02376682]
[1771176990842,0.02401016,69078.0,69060.0,0.65364265]
[1771176991061,0.02401016,69078.0,69060.0,0.02376682]
[1771176991062,0.02401016,69077.0,69060.0,0.02376682]
[1771176991264,0.02401016,69077.0,69060.0,0.65364265]
[1771176991444,0.02401016,69077.0,69061.0,0.02376682]
[1771176995337,0.02352702,69077.0,69061.0,0.02376682]
[1771176997592,0.02352702,69077.0,69062.0,0.02299504]
[1771176998073,0.02352702,69077.0,69062.0,0.04676186]
[1771176998272,0.02336592,69077.0,69062.0,0.04676186]
[1771176998553,0.0004,69080.0,69069.0,0.02376682]
[1771176998859,0.0694,69086.0,69073.0,0.02376682]
[1771176999137,0.0694,69086.0,69074.0,0.02376682]
[1771176999733,0.00052921,69087.0,69077.0,0.02376682]
[1771177000630,0.00036819,69087.0,69077.0,0.02376682]
[1771177000812,0.07237414,69086.0,69077.0,0.02376682]
[1771177001152,0.00036819,69087.0,69072.0,0.02299504]
[1771177001374,0.00036819,69087.0,69073.0,0.02376682]
[1771177002623,0.00036819,69087.0,69060.0,0.7022759]
[1771177002624,0.00036819,69087.0,69077.0,0.65364265]
[1771177003508,4.611e-05,69087.0,69077.0,0.65364265]
[1771177003730,0.30796,69089.0,69077.0,0.65364265]
[1771177003943,0.0002809,69091.0,69077.0,0.02389603]
[1771177004175,0.0002809,69091.0,69083.0,0.02462022]
[1771177004395,0.0002809,69091.0,69084.0,0.02462022]
[1771177006473,0.0004,69094.0,69086.0,0.02462022]
[1771177007095,0.0004,69094.0,69087.0,0.02462022]
[1771177007515,0.0004,69094.0,69084.0,0.62987583]
[1771177007516,0.0002835,69107.0,69088.0,0.02462022]
[1771177007727,0.30756,69106.0,69092.0,0.02462022]
[1771177007931,0.30756,69106.0,69094.0,0.02462022]
[1771177008352,0.30756,69106.0,69090.0,0.62987583]
[1771177008353,0.30756,69106.0,69095.0,0.02198431]
[1771177008560,0.30756,69106.0,69097.0,0.04660453]
[1771177008762,0.0002835,69107.0,69097.0,0.04660453]
[1771177009200,0.0002835,69107.0,69090.0,0.62987583]
[1771177009414,0.0002835,69107.0,69094.0,0.02198431]
[1771177009616,0.0004,69105.0,69097.0,0.02462022]
[1771177010418,0.0004,69105.0,69092.0,0.04660453]
[1771177010630,0.0004,69105.0,69080.0,0.34692]
[1771177010843,0.02383814,69094.0,69080.0,0.34692]
[1771177011276,0.02383814,69094.0,69080.0,0.97679583]
[1771177011702,0.0723585,69101.0,69082.0,0.02462022]
[1771177011906,0.02383814,69100.0,69082.0,0.02198431]
[1771177012084,0.02383814,69100.0,69083.0,0.02462022]
[1771177012313,0.02383814,69099.0,69083.0,0.02462022]
[1771177012514,0.07236099,69098.0,69083.0,0.02462022]
[1771177012718,0.09619913,69098.0,69083.0,0.02462022]
[1771177012900,0.02383814,69097.0,69083.0,0.02462022]
[1771177013281,0.09620022,69097.0,69083.0,0.02462022]
[1771177013496,0.02383814,69097.0,69083.0,0.02462022]
[1771177013708,0.02383814,69083.0,69067.0,0.02462022]
[1771177013912,0.02383814,69083.0,69065.0,0.02198431]
[1771177013913,0.02383814,69082.0,69065.0,0.02198431]
[1771177014109,0.02383814,69078.0,69065.0,0.02198431]
[1771177014926,0.00012909,69082.0,69070.0,0.02198431]
[1771177016048,0.00012909,69082.0,69070.0,0.04660453]
[1771177016443,0.00012909,69082.0,69070.0,0.02462022]
[1771177016613,0.00012909,69082.0,69073.0,0.04660453]
[1771177016845,0.00012909,69082.0,69073.0,0.02462022]
[1771177016995,0.00012909,69082.0,69073.0,0.04660453]
[1771177017824,0.00012909,69082.0,69072.0,0.62987583]
[1771177018902,0.00012909,69082.0,69072.0,0.67648036]
[1771177020228,0.00012909,69082.0,69072.0,0.65449605]
[1771177021430,0.00012909,69082.0,69072.0,0.62987583]
[1771177023345,0.00012909,69082.0,69072.0,0.65186014]
[1771177023692,0.00012909,69082.0,69072.0,0.67648036]
[1771177024424,0.00012909,69082.0,69072.0,0.65449605]
[1771177024639,0.00012909,69082.0,69072.0,0.67668036]
[1771177028831,0.00012909,69082.0,69072.0,0.65469605]
[1771177028986,0.00012909,69082.0,69073.0,0.02198431]
[1771177029575,0.0004,69083.0,69074.0,0.02462022]
[1771177029777,0.62987583,69090.0,69074.0,0.00012909]
[1771177029976,0.30776,69091.0,69074.0,0.00012909]
[1771177030306,0.02383814,69090.0,69075.0,0.04660453]
[1771177030712,0.33159814,69090.0,69075.0,0.04660453]
[1771177031639,0.33159814,69090.0,69074.0,0.00012909]
[1771177031807,0.96147397,69090.0,69075.0,0.04660453]
[1771177032010,0.80466534,69090.0,69074.0,0.00012909]
[1771177032331,0.02383814,69088.0,69074.0,0.00012909]
[1771177033350,0.07237085,69089.0,69074.0,0.00012909]
[1771177033351,0.0236489,69089.0,69074.0,0.00012909]
[1771177033517,0.0723724,69088.0,69074.0,0.00012909]
[1771177033697,0.0236489,69087.0,69074.0,0.00012909]
[1771177034751,0.10241947,69090.0,69075.0,0.02145738]
[1771177034951,0.10241947,69090.0,69074.0,0.023963]
[1771177035166,0.0236489,69089.0,69074.0,0.023963]
[1771177037050,0.07237046,69089.0,69074.0,0.023963]
[1771177037252,0.0236489,69088.0,69074.0,0.023963]
[1771177038890,0.0236489,69088.0,69074.0,0.04542038]
[1771177040114,1.25895514,69084.0,69065.0,0.0002]
[1771177040312,1.25895514,69084.0,69061.0,0.0002]
[1771177040313,0.0236489,69066.0,69061.0,0.0002]
[1771177040818,0.0236489,69065.0,69061.0,0.0002]
[1771177042060,0.30856,69066.0,69061.0,0.02191937]
[1771177043891,0.30856,69066.0,69061.0,0.02403391]
[1771177044070,0.30856,69066.0,69062.0,0.02171937]
[1771177045310,0.0236489,69079.0,69062.0,0.02171937]
[1771177045514,0.0236489,69079.0,69061.0,0.0002]
[1771177045515,0.0236489,69079.0,69064.0,0.02171937]
[1771177045767,0.28947995,69090.0,69064.0,0.02171937]
[1771177045768,0.09603189,69077.0,69064.0,0.02171937]
[1771177045940,0.62947757,69074.0,69064.0,0.02171937]
[1771177046700,0.0236489,69077.0,69064.0,0.02209807]
[1771177047461,0.30968,69076.0,69064.0,0.02209807]
[1771177049807,0.30968,69076.0,69064.0,0.02229807]
[1771177050950,0.38206441,69076.0,69064.0,0.02229807]
[1771177051099,0.40571331,69076.0,69064.0,0.02229807]
[1771177051298,0.0236489,69075.0,69064.0,0.02229807]
[1771177052526,0.62947757,69074.0,69064.0,0.02229807]
[1771177057711,0.3355689,69075.0,69064.0,0.02229807]
[1771177059221,0.62947757,69074.0,69064.0,0.02229807]
[1771177060757,0.3355689,69075.0,69064.0,0.02229807]
[1771177061878,0.40795459,69075.0,69064.0,0.02229807]
[1771177062278,0.62947757,69074.0,69064.0,0.02229807]
[1771177063299,0.62947757,69074.0,69064.0,0.0005787]
[1771177063619,0.7018643,69074.0,69064.0,0.0005787]
[1771177064835,0.62947757,69074.0,69064.0,0.0005787]
[1771177066912,0.62947757,69074.0,69065.0,0.02171937]
[1771177067112,0.3355689,69075.0,69065.0,0.02171937]
[1771177067818,0.3355689,69075.0,69065.0,0.02209807]
[1771177068636,0.0004,69074.0,69065.0,0.02209807]
[1771177071972,0.0004,69074.0,69066.0,0.02171937]
[1771177072224,0.62947757,69080.0,69066.0,0.02171937]
[1771177072403,0.00012912,69084.0,69065.0,0.0003787]
[1771177072404,0.31784,69077.0,69070.0,0.02171937]
[1771177072586,0.00012912,69084.0,69070.0,0.02171937]
[1771177072785,0.00012912,69084.0,69071.0,0.02337917]
[1771177072786,0.31792,69080.0,69071.0,0.02337917]
[1771177072981,0.31792,69080.0,69072.0,0.02171937]
[1771177073830,0.31792,69080.0,69073.0,0.02171937]
[1771177074887,0.31792,69080.0,69073.0,0.02190137]
[1771177076653,0.31832,69080.0,69073.0,0.02190137]
[1771177077189,0.0004,69080.0,69073.0,0.02190137]
[1771177078023,0.00012912,69084.0,69073.0,0.000182]
[1771177078215,0.00012912,69084.0,69075.0,0.02163937]
[1771177079043,0.07250494,69084.0,69075.0,0.02182137]
[1771177079261,0.00012912,69084.0,69075.0,0.02182137]
[1771177081950,0.07238603,69075.0,69068.0,0.0001967]
[1771177082306,0.02335822,69080.0,69064.0,0.02183937]
[1771177082307,0.02335822,69076.0,69064.0,0.0002]
[1771177082575,0.02335822,69079.0,69065.0,0.02163937]
[1771177082782,0.02335822,69079.0,69064.0,0.0002]
[1771177082783,0.31964,69077.0,69068.0,0.02337917]
[1771177083002,0.00012912,69084.0,69069.0,0.02163937]
[1771177083213,0.00012912,69084.0,69064.0,0.0002]
[1771177083214,0.00012912,69084.0,69072.0,0.02337917]
[1771177083426,0.00012912,69084.0,69073.0,0.02337917]
[1771177083639,0.00012912,69084.0,69074.0,0.02163937]
[1771177083824,0.00012912,69084.0,69075.0,0.02163937]
[1771177084034,0.00012912,69084.0,69076.0,0.02163937]
[1771177084463,0.00012912,69084.0,69076.0,0.01081898]
[1771177086415,0.00012912,69084.0,69070.0,0.62947757]
[1771177086616,0.00012912,69084.0,69074.0,0.02337917]
[1771177086827,0.0004,69081.0,69077.0,0.02131487]
[1771177087035,0.0004,69081.0,69079.0,0.02131487]
[1771177088083,0.0004,69081.0,69074.0,0.02131487]
[1771177094505,0.00023876,69081.0,69074.0,0.02131487]
[1771177095469,0.00023876,69081.0,69074.0,0.02151487]
[1771177106272,0.00040356,69081.0,69074.0,0.02151487]
[1771177127472,0.00040356,69081.0,69074.0,0.0214709]
[1771177142416,0.0005716,69087.0,69074.0,0.0214709]
[1771177142631,0.11571512,69107.0,69080.0,0.01955236]
[1771177142843,0.1526,69110.0,69080.0,0.01955236]
[1771177142844,0.023577,69102.0,69084.0,0.01955236]
[1771177143056,0.023577,69102.0,69086.0,0.01955236]
[1771177143260,0.32704,69103.0,69090.0,0.01955236]
[1771177143476,0.32704,69105.0,69093.0,0.0235075]
[1771177143709,0.0001716,69106.0,69094.0,0.01955236]
[1771177143926,0.0001716,69106.0,69096.0,0.0235075]
[1771177144145,0.0001716,69106.0,69097.0,0.01955236]
[1771177144355,0.0001716,69106.0,69098.0,0.01955236]
[1771177144588,0.0001716,69106.0,69090.0,0.62949513]
[1771177144589,0.0001716,69106.0,69100.0,0.01955236]
[1771177145025,0.07234506,69114.0,69100.0,0.01955236]
[1771177145026,0.07251423,69116.0,69100.0,0.0235075]
[1771177145243,0.07251423,69116.0,69088.0,0.34692]
[1771177145244,0.3272,69114.0,69101.0,0.0235075]
[1771177145452,0.07234646,69112.0,69102.0,0.01955236]
[1771177145673,0.001,69103.0,69102.0,0.01955236]
[1771177146144,0.07234646,69112.0,69102.0,0.01955236]
[1771177146350,0.62953876,69112.0,69102.0,0.01955236]
[1771177146590,0.62953876,69112.0,69103.0,0.01955236]
[1771177146591,4.363e-05,69112.0,69103.0,0.01955236]
[1771177151020,4.363e-05,69112.0,69103.0,0.01940576]
[1771177151449,0.00044363,69112.0,69103.0,0.01940576]
[1771177151571,0.00044363,69112.0,69098.0,0.0235075]
[1771177151779,0.09636711,69112.0,69099.0,0.01955236]
[1771177151982,0.02402063,69112.0,69099.0,0.01955236]
[1771177152565,0.09636791,69112.0,69099.0,0.01955236]
[1771177152783,0.023577,69109.0,69074.0,0.0002]
[1771177152996,0.023577,69098.0,69076.0,0.09272]
[1771177153208,0.07236109,69098.0,69076.0,0.43948]
[1771177153462,0.023577,69097.0,69081.0,0.02082166]
[1771177153642,0.023577,69097.0,69082.0,0.02082166]
[1771177155490,0.70185432,69100.0,69076.0,0.43948]
[1771177155491,0.62949513,69092.0,69076.0,0.43948]
[1771177155693,0.62949513,69092.0,69074.0,0.0002]
[1771177155694,0.31269597,69087.0,69074.0,0.0002]
[1771177155908,0.02320241,69083.0,69074.0,0.0002]
[1771177157045,0.02320241,69083.0,69074.0,0.00028723]
[1771177158107,0.02320241,69080.0,69074.0,0.00028723]
[1771177158301,0.07238024,69080.0,69074.0,0.00028723]
[1771177158511,0.02320241,69078.0,69074.0,0.00028723]
[1771177158648,0.02320241,69078.0,69074.0,0.00014076]
[1771177161420,0.02320241,69085.0,69070.0,0.02082166]
[1771177161630,0.02320241,69085.0,69070.0,0.63007117]
[1771177161873,0.02320241,69085.0,69071.0,0.02082166]
[1771177162264,0.07237077,69089.0,69072.0,0.02436678]
[1771177162470,0.07237077,69089.0,69070.0,0.63007117]
[1771177162471,0.07237161,69088.0,69074.0,0.02082166]
[1771177162840,0.07237246,69089.0,69074.0,0.02082166]
[1771177162841,0.33024,69086.0,69074.0,0.02082166]
[1771177163045,0.33024,69086.0,69074.0,0.02436678]
[1771177163249,0.33024,69086.0,69075.0,0.02082166]
[1771177165988,0.07236695,69093.0,69076.0,0.02436678]
[1771177166144,0.33076,69088.0,69079.0,0.02082166]
[1771177166569,0.33076,69088.0,69072.0,0.02436678]
[1771177166570,0.09557492,69087.0,69073.0,0.02082166]
[1771177167216,0.02320241,69087.0,69073.0,0.02082166]
[1771177167609,0.33076,69088.0,69075.0,0.0002]
[1771177167758,0.33076,69088.0,69080.0,0.02082166]
[1771177168679,0.33076,69088.0,69080.0,0.02436678]
[1771177168982,0.33076,69088.0,69081.0,0.02082166]
[1771177174637,0.02320241,69087.0,69075.0,0.0002]
[1771177174869,0.02320241,69086.0,69075.0,0.0002]
[1771177175951,0.02320241,69086.0,69075.0,0.02102166]
[1771177179980,0.33116,69088.0,69075.0,0.02102166]
[1771177181313,0.42673478,69088.0,69075.0,0.02102166]
[1771177181476,0.02320241,69086.0,69075.0,0.02102166]
[1771177183250,0.02320241,69085.0,69075.0,0.02102166]
[1771177184169,0.02337859,69084.0,69075.0,0.0002]
[1771177185346,0.07237274,69087.0,69075.0,0.01927606]
[1771177186004,0.09575133,69087.0,69075.0,0.01927606]
[1771177186946,0.33116,69088.0,69077.0,0.01907606]
[1771177187129,0.33376,69087.0,69077.0,0.01907606]
[1771177187644,0.33376,69087.0,69079.0,0.01907606]
[1771177188414,0.0004,69088.0,69079.0,0.02461305]
[1771177188612,0.0004,69088.0,69080.0,0.01907606]
[1771177189880,0.0004,69088.0,69080.0,0.04368911]
[1771177190006,0.0004,69088.0,69081.0,0.01907606]
[1771177191486,0.0004,69087.0,69081.0,0.01907606]
[1771177191638,0.0004,69087.0,69081.0,0.01877762]
[1771177191866,0.0004,69088.0,69081.0,0.02461305]
[1771177192187,0.0004,69088.0,69082.0,0.01893638]
[1771177192495,0.0004,69094.0,69085.0,0.01885638]
[1771177193097,0.0004,69094.0,69086.0,0.01885638]
[1771177193529,0.07276564,69094.0,69086.0,0.01885638]
[1771177193676,0.07276557,69094.0,69086.0,0.01885638]
[1771177193880,0.0004,69094.0,69086.0,0.01885638]
[1771177196987,0.07276522,69094.0,69086.0,0.01885638]
[1771177197849,0.0004,69094.0,69086.0,0.01885638]
[1771177201128,0.07276588,69094.0,69086.0,0.01885638]
[1771177201466,0.0004,69094.0,69086.0,0.01885638]
[1771177204130,0.62964028,69100.0,69080.0,0.62964028]
[1771177204131,0.0004,69102.0,69087.0,0.02461305]
[1771177204403,0.0004,69101.0,69092.0,0.01885638]
[1771177205200,0.0004,69101.0,69075.0,0.0002]
[1771177205201,0.07237387,69086.0,69075.0,0.0002]
[1771177205405,0.02337859,69088.0,69075.0,0.0002]
[1771177205653,0.02337859,69088.0,69075.0,0.0191855]
[1771177205854,0.02337859,69100.0,69079.0,0.01885638]
[1771177206054,0.3372,69099.0,69082.0,0.02461305]
[1771177206255,0.40956008,69099.0,69085.0,0.01885638]
[1771177206466,0.36057859,69099.0,69085.0,0.01885638]
[1771177206843,0.0004,69094.0,69085.0,0.01885638]
[1771177207428,0.62964028,69100.0,69087.0,0.01883247]
[1771177207632,0.3374,69098.0,69089.0,0.01883247]
[1771177207852,0.3374,69098.0,69090.0,0.01883247]
[1771177209734,0.33796,69100.0,69090.0,0.01883247]
[1771177209950,0.33796,69100.0,69091.0,0.01883247]
[1771177212139,0.0004,69102.0,69091.0,0.01883247]
[1771177212731,0.63004028,69101.0,69091.0,0.01883247]
[1771177212931,0.63004028,69101.0,69082.0,9.16e-05]
[1771177213136,0.02337859,69100.0,69084.0,0.01883247]
[1771177213340,0.02377859,69100.0,69084.0,0.01883247]
[1771177213573,0.02377859,69100.0,69085.0,0.01943536]
[1771177213574,0.09613784,69100.0,69085.0,0.01943536]
[1771177213722,0.02377859,69100.0,69085.0,0.01943536]
[1771177215597,0.02463088,69099.0,69085.0,0.01943536]
[1771177215897,0.02463088,69098.0,69085.0,0.01943536]
[1771177216101,0.02463088,69097.0,69085.0,0.01943536]
[1771177216679,0.02463088,69094.0,69082.0,9.16e-05]
[1771177216907,0.62964028,69092.0,69082.0,9.16e-05]
[1771177217111,0.62964028,69092.0,69075.0,0.34733502]
[1771177217112,0.62964028,69092.0,69075.0,0.00045502]
[1771177217285,0.07237146,69089.0,69075.0,0.00045502]
[1771177217508,0.02463088,69088.0,69075.0,0.00045502]
[1771177218136,0.02463088,69087.0,69075.0,0.00045502]
[1771177219423,0.07237266,69087.0,69075.0,0.00045502]
[1771177219749,0.07237062,69089.0,69075.0,0.00045502]
[1771177219750,0.02463088,69086.0,69075.0,0.00045502]
[1771177220306,0.02463088,69086.0,69075.0,0.00030861]
[1771177221203,0.07237387,69086.0,69075.0,0.00030861]
[1771177221403,0.02463088,69085.0,69075.0,0.00030861]
[1771177221644,0.02463088,69084.0,69075.0,0.00030861]
[1771177224485,0.07237724,69083.0,69075.0,0.00030861]
[1771177224680,0.02463088,69081.0,69075.0,0.00030861]
[1771177225565,0.02463088,69081.0,69063.0,0.311032]
[1771177225566,0.00970668,69083.0,69060.0,0.0002]
[1771177225773,0.00970668,69083.0,69052.0,0.0002]
[1771177225774,0.02375975,69068.0,69052.0,0.0002]
[1771177225970,0.02375975,69060.0,69052.0,0.0002]
[1771177226175,0.02375975,69059.0,69052.0,0.0002]
[1771177226512,0.09616178,69059.0,69052.0,0.0002]
[1771177226711,0.09616652,69055.0,69041.0,0.01906799]
[1771177226921,0.34016,69059.0,69041.0,0.01906799]
[1771177226922,0.62954642,69051.0,69041.0,0.01906799]
[1771177227112,0.62954642,69051.0,69041.0,0.01949888]
[1771177228639,0.4125623,69059.0,69041.0,0.01949888]
[1771177228868,0.09616283,69058.0,69043.0,0.01888459]
[1771177229110,0.02375975,69057.0,69043.0,0.01888459]
[1771177230608,0.02375975,69057.0,69043.0,0.0246655]
[1771177230784,0.02375975,69057.0,69044.0,0.01888459]
[1771177230993,0.02375975,69057.0,69043.0,0.0246655]
[1771177230994,0.62954642,69070.0,69048.0,0.01888459]
[1771177231205,0.36491975,69069.0,69051.0,0.0246655]
[1771177231419,0.07239657,69065.0,69050.0,0.62954642]
[1771177231628,0.0723949,69066.0,69052.0,0.0246655]
[1771177231827,0.07239543,69067.0,69053.0,0.01888459]
[1771177232126,0.09615284,69068.0,69053.0,0.01888459]
[1771177233067,0.02375975,69068.0,69053.0,0.01888459]
[1771177233271,0.02375975,69068.0,69055.0,0.01888459]
[1771177233491,0.09272,69076.0,69055.0,0.01888459]
[1771177233492,0.62954642,69080.0,69055.0,0.01888459]
[1771177233709,0.07238157,69079.0,69063.0,0.01888459]
[1771177233917,0.07238157,69079.0,69065.0,0.0246655]
[1771177233918,0.273,69078.0,69065.0,0.0246655]
[1771177234116,0.273,69078.0,69066.0,0.01888459]
[1771177234524,0.34538266,69078.0,69066.0,0.01888459]
[1771177234951,0.00030249,69075.0,69066.0,0.01873819]
[1771177235165,0.00030249,69075.0,69061.0,0.0246655]
[1771177235373,0.65330617,69071.0,69055.0,0.01888459]
[1771177235584,0.02375975,69070.0,69055.0,0.01888459]
[1771177235795,0.62954642,69065.0,69055.0,0.01888459]
[1771177236007,0.02375975,69068.0,69055.0,0.01888459]
[1771177236903,0.62954642,69070.0,69056.0,0.0246655]
[1771177237113,0.00030249,69075.0,69053.0,0.0002]
[1771177237114,0.34172,69072.0,69059.0,0.01888459]
[1771177237324,0.34172,69072.0,69062.0,0.0246655]
[1771177237556,0.97126642,69072.0,69064.0,0.01888459]
[1771177237765,0.00030249,69075.0,69064.0,0.01888459]
[1771177237766,0.07238718,69073.0,69064.0,0.01888459]
[1771177237983,0.62954642,69074.0,69064.0,0.01888459]
[1771177240243,0.62954642,69074.0,69064.0,0.0246655]
[1771177240511,0.62954642,69074.0,69065.0,0.01888459]
[1771177240727,0.00030249,69075.0,69065.0,0.01888459]
[1771177241562,0.62984891,69075.0,69065.0,0.01888459]
[1771177243361,0.14895258,69074.0,69065.0,0.01888459]
[1771177245154,0.28955466,69072.0,69053.0,0.0002]
[1771177245515,0.62954642,69063.0,69054.0,0.01863659]
[1771177245714,0.14291528,69065.0,69054.0,0.01863659]
[1771177249486,0.14291528,69063.0,69054.0,0.01863659]
[1771177252528,0.14291528,69067.0,69054.0,0.01863659]
[1771177253463,0.0004,69068.0,69054.0,0.01863659]
[1771177259903,0.0004,69068.0,69054.0,0.01883659]
[1771177260536,0.14291528,69067.0,69054.0,0.01883659]
[1771177260743,0.14291528,69063.0,69050.0,0.0002]
[1771177260911,0.14291528,69059.0,69050.0,0.0002]
[1771177261502,0.14291528,69059.0,69051.0,0.01863659]
[1771177263284,0.14291528,69059.0,69050.0,0.0002]
[1771177264008,0.14291528,69058.0,69050.0,0.0002]
[1771177265695,0.14291528,69058.0,69050.0,5.363e-05]
[1771177266382,0.14291528,69058.0,69051.0,0.0002]